Workbook

Sheet 汇总
A1: 库存汇总
A2: 序号 | B2: 仓库名称 | C2: 物料数量 | D2: 货值
A3: 1 | B3: 江西余干库 | C3: =江西余干库!H13 -> 3986 | D3: =江西余干库!I13 -> 5834642
A4: 2 | B4: 庄河荣名库 | C4: =庄河荣名库!H23 -> 3064 | D4: =庄河荣名库!I23 -> 6240961
A5: 3 | B5: 安阳荣名库 | C5: =安阳荣名库!H23 -> 41347 | D5: =安阳荣名库!I23 -> 40375436.2
A6: 4 | B6: 藁城荣名库 | C6: =藁城荣名库!H21 -> 12289 | D6: =藁城荣名库!I21 -> 11275196
A7: 5 | B7: 曲阜荣名库 | C7: =曲阜荣名库!H24 -> 14649 | D7: =曲阜荣名库!I24 -> 16563951.6
A8: 合计 | C8: =SUM(C3:C7) -> 75335 | D8: =SUM(D3:D7) -> 80290186.8

Sheet 江西余干库
A1: 江西余干库
A2: 序号 | B2: 仓库名称 | C2: 物料组 | D2: 物料编号 | E2: 物料名称 | F2: 物料品牌 | G2: 物料单价 | H2: 库存数量 | I2: 货值
A3: 1 | B3: 江西余干库 | C3: 组件 | D3: 1004000067 | E3: 东方日升660双玻 | F3: 山海新能-东方日升 | G3: 1082.4 | H3: 3680 | I3: =G3*H3 -> 3983232
A4: 2 | B4: 江西余干库 | C4: 逆变器 | D4: 2001000015 | E4: 逆变器-15 | F4: 山海新能-锦浪 | G4: 3905 | H4: 10 | I4: =G4*H4 -> 39050
A5: 3 | B5: 江西余干库 | C5: 逆变器 | D5: 2001000020 | E5: 逆变器-20 | F5: 山海新能-锦浪 | G5: 4510 | H5: 64 | I5: =G5*H5 -> 288640
A6: 4 | B6: 江西余干库 | C6: 逆变器 | D6: 2001000025 | E6: 逆变器-25 | F6: 山海新能-锦浪 | G6: 5170 | H6: 120 | I6: 620400
A7: 5 | B7: 江西余干库 | C7: 逆变器 | D7: 2001000030 | E7: 逆变器-30 | F7: 山海新能-锦浪 | G7: 7700 | H7: 81 | I7: 623700
A8: 6 | B8: 江西余干库 | C8: 逆变器 | D8: 2001000036 | E8: 逆变器-36 | F8: 山海新能-锦浪 | G8: 8525 | H8: 18 | I8: 153450
A9: 7 | B9: 江西余干库 | C9: 逆变器 | D9: 2001000040 | E9: 逆变器-40 | F9: 山海新能-锦浪 | G9: 8690 | H9: 9 | I9: 78210
A10: 8 | B10: 江西余干库 | C10: 逆变器 | D10: 2001000050 | E10: 逆变器-50 | F10: 山海新能-锦浪 | G10: 11990 | H10: 4 | I10: 47960
A13: 总计 | H13: =SUM(H3:H12) -> 3986 | I13: =SUM(I3:I12) -> 5834642

Sheet 庄河荣名库
A1: 庄河荣名库
A2: 序号 | B2: 仓库名称 | C2: 物料组 | D2: 物料编号 | E2: 物料名称 | F2: 物料品牌 | G2: 物料单价 | H2: 库存数量 | I2: 货值
A3: 1 | B3: 庄河荣名库 | C3: 组件 | D3: 1004000060 | E3: 东方日升600 | F3: 山海新能-东方日升 | G3: 1108.8 | H3: 160 | I3: =G3*H3 -> 177408
A4: 2 | B4: 庄河荣名库 | C4: 组件 | D4: 1001000054 | E4: 天合600 | F4: 山海智慧-天合 | G4: 1267 | H4: 0 | I4: =G4*H4 -> 0
A5: 3 | B5: 庄河荣名库 | C5: 组件 | D5: 1004000047 | E5: 晶科475 | F5: 山海智慧-天合 | G5: 904 | H5: 2418 | I5: =G5*H5 -> 2185872
A6: 4 | B6: 庄河荣名库 | C6: 逆变器 | D6: 2003000060 | E6: 逆变器-60 | F6: 山海新能-锦浪 | G6: 11300 | H6: 21 | I6: =G6*H6 -> 237300
A7: 5 | B7: 庄河荣名库 | C7: 逆变器 | D7: 2003000040 | E7: 逆变器-40 | F7: 山海新能-固德威 | G7: 8171 | H7: 31 | I7: 253301
A8: 6 | B8: 庄河荣名库 | C8: 逆变器 | D8: 2003000036 | E8: 逆变器-36 | F8: 山海新能-固德威 | G8: 7660 | H8: 5 | I8: 38300
A9: 7 | B9: 庄河荣名库 | C9: 逆变器 | D9: 2003000030 | E9: 逆变器-30 | F9: 山海新能-固德威 | G9: 7100 | H9: 18 | I9: 127800
A10: 8 | B10: 庄河荣名库 | C10: 逆变器 | D10: 20010000110 | E10: 逆变器-110 | F10: 山海新能-锦浪 | G10: 19800 | H10: 22 | I10: 435600
A11: 9 | B11: 庄河荣名库 | C11: 逆变器 | D11: 2001000080 | E11: 逆变器-80 | F11: 山海新能-锦浪 | G11: 17300 | H11: 34 | I11: 588200
A12: 10 | B12: 庄河荣名库 | C12: 逆变器 | D12: 2001000008 | E12: 逆变器-8 | F12: 山海新能-锦浪 | G12: 2830 | H12: 50 | I12: 141500
A13: 11 | B13: 庄河荣名库 | C13: 逆变器 | D13: 2001000050 | E13: 逆变器-50 | F13: 山海新能-锦浪 | G13: 11990 | H13: 34 | I13: 407660
A14: 12 | B14: 庄河荣名库 | C14: 逆变器 | D14: 2001000013 | E14: 逆变器-13 | F14: 山海新能-锦浪 | G14: 3520 | H14: 0 | I14: 0
A15: 13 | B15: 庄河荣名库 | C15: 逆变器 | D15: 2001000015 | E15: 逆变器-15 | F15: 山海新能-锦浪 | G15: 3905 | H15: 45 | I15: 175725
A16: 14 | B16: 庄河荣名库 | C16: 逆变器 | D16: 2001000036 | E16: 逆变器-36 | F16: 山海新能-锦浪 | G16: 8525 | H16: 25 | I16: 213125
A17: 15 | B17: 庄河荣名库 | C17: 逆变器 | D17: 2001000030 | E17: 逆变器-30 | F17: 山海新能-锦浪 | G17: 7700 | H17: 49 | I17: 377300
A18: 16 | B18: 庄河荣名库 | C18: 逆变器 | D18: 2001000040 | E18: 逆变器-40 | F18: 山海新能-锦浪 | G18: 8690 | H18: 7 | I18: 60830
A19: 17 | B19: 庄河荣名库 | C19: 逆变器 | D19: 2001000033 | E19: 逆变器-33 | F19: 山海新能-锦浪 | G19: 8195 | H19: 38 | I19: 311410
A20: 18 | B20: 庄河荣名库 | C20: 逆变器 | D20: 2001000025 | E20: 逆变器-25 | F20: 山海新能-锦浪 | G20: 5170 | H20: 41 | I20: 211970
A21: 19 | B21: 庄河荣名库 | C21: 逆变器 | D21: 2001000020 | E21: 逆变器-20 | F21: 山海新能-锦浪 | G21: 4510 | H21: 66 | I21: 297660
A23: 总计 | H23: =SUM(H3:H22) -> 3064 | I23: =SUM(I3:I22) -> 6240961

Sheet 安阳荣名库
A1: 安阳荣名库
A2: 序号 | B2: 仓库名称 | C2: 物料组 | D2: 物料编号 | E2: 物料名称 | F2: 物料品牌 | G2: 物料单价 | H2: 库存数量 | I2: 货值
A3: 1 | B3: 安阳荣名库 | C3: 组件 | D3: 1004000048 | E3: 晶科470 | F3: 山海新能 | G3: 904 | H3: 11036 | I3: =G3*H3 -> 9976544
A4: 2 | B4: 安阳荣名库 | C4: 组件 | D4: 1004000067 | E4: 东方日升660双玻 | F4: 山海新能-东方日升 | G4: 1082.4 | H4: 1287 | I4: =G4*H4 -> 1393048.8
A5: 3 | B5: 安阳荣名库 | C5: 组件 | D5: 1005000066 | E5: 阿特斯660 | F5: 山海新能-阿特斯 | G5: 1075.8 | H5: 1133 | I5: 1218881.4
A6: 4 | B6: 安阳荣名库 | C6: 组件 | D6: 1004000047 | E6: 晶科475 | F6: 山海智慧-天合 | G6: 904 | H6: 27628 | I6: 24975712
A7: 5 | B7: 安阳荣名库 | C7: 逆变器 | D7: 2002000040 | E7: 逆变器-40 | F7: 山海新能-古瑞瓦特 | G7: 7600 | H7: 12 | I7: 91200
A8: 6 | B8: 安阳荣名库 | C8: 逆变器 | D8: 2002000050 | E8: 逆变器-50 | F8: 山海新能-古瑞瓦特 | G8: 9000 | H8: 36 | I8: 324000
A9: 7 | B9: 安阳荣名库 | C9: 逆变器 | D9: 20010000110 | E9: 逆变器-110 | F9: 山海新能-锦浪 | G9: 19800 | H9: 71 | I9: 1405800
A10: 8 | B10: 安阳荣名库 | C10: 逆变器 | D10: 2001000030 | E10: 逆变器-30 | F10: 山海新能-锦浪 | G10: 7700 | H10: 4 | I10: 30800
A11: 9 | B11: 安阳荣名库 | C11: 逆变器 | D11: 2001000060 | E11: 逆变器-60 | F11: 山海新能-锦浪 | G11: 11300 | H11: 0 | I11: 0
A12: 10 | B12: 安阳荣名库 | C12: 逆变器 | D12: 2001000080 | E12: 逆变器-80 | F12: 山海新能-锦浪 | G12: 17300 | H12: 1 | I12: 17300
A13: 11 | B13: 安阳荣名库 | C13: 逆变器 | D13: 2001000036 | E13: 逆变器-36 | F13: 山海新能-锦浪 | G13: 8525 | H13: 1 | I13: 8525
A14: 12 | B14: 安阳荣名库 | C14: 逆变器 | D14: 2001000050 | E14: 逆变器-50 | F14: 山海新能-锦浪 | G14: 11990 | H14: 4 | I14: =G14*H14 -> 47960
A15: 13 | B15: 安阳荣名库 | C15: 逆变器 | D15: 2001000040 | E15: 逆变器-40 | F15: 山海新能-锦浪 | G15: 8690 | H15: 13 | I15: 112970
A16: 14 | B16: 安阳荣名库 | C16: 逆变器 | D16: 2001000013 | E16: 逆变器-13 | F16: 山海新能-锦浪 | G16: 3520 | H16: 5 | I16: 17600
A17: 15 | B17: 安阳荣名库 | C17: 逆变器 | D17: 2001000015 | E17: 逆变器-15 | F17: 山海新能-锦浪 | G17: 3905 | H17: 5 | I17: 19525
A18: 16 | B18: 安阳荣名库 | C18: 逆变器 | D18: 2004000133 | E18: 逆变器-33 | F18: 禾望 | G18: 7260 | H18: 34 | I18: 246840
A19: 17 | B19: 安阳荣名库 | C19: 逆变器 | D19: 2001000025 | E19: 逆变器-25 | F19: 山海新能-锦浪 | G19: 5170 | H19: 0 | I19: 0
A20: 18 | B20: 安阳荣名库 | C20: 逆变器 | D20: 2001000020 | E20: 逆变器-20 | F20: 山海新能-锦浪 | G20: 4510 | H20: 27 | I20: 121770
A21: 19 | B21: 安阳荣名库 | C21: 逆变器 | D21: 2004000130 | E21: 逆变器-30 | F21: 禾望 | G21: 7040 | H21: 33 | I21: 232320
A22: 20 | B22: 安阳荣名库 | C22: 逆变器 | D22: 2004000136 | E22: 逆变器-36 | F22: 禾望 | G22: 7920 | H22: 17 | I22: 134640
A23: 总计 | H23: =SUM(H3:H22) -> 41347 | I23: =SUM(I3:I22) -> 40375436.2

Sheet 藁城荣名库
A1: 藁城荣名库
A2: 序号 | B2: 仓库名称 | C2: 物料组 | D2: 物料编号 | E2: 物料名称 | F2: 物料品牌 | G2: 物料单价 | H2: 库存数量 | I2: 货值
A3: 1 | B3: 藁城荣名库 | C3: 组件 | D3: 1001000050 | E3: TSM-500DE18M(II） | F3: 山海智慧-天合 | G3: 900 | H3: 71 | I3: =G3*H3 -> 63900
A4: 2 | B4: 藁城荣名库 | C4: 组件 | D4: 1001000053 | E4: TSM-535DE19 | F4: 山海智慧-天合 | G4: 963 | H4: 12 | I4: =G4*H4 -> 11556
A5: 3 | B5: 藁城荣名库 | C5: 组件 | D5: 1002000053 | E5: TSM-535DE19 | F5: 山海智慧-远显 | G5: 996 | H5: 561 | I5: 558756
A6: 4 | B6: 藁城荣名库 | C6: 组件 | D6: 1003000053 | E6: TSM-535DE19 | F6: 山海智慧-乐丰 | G6: 996 | H6: 215 | I6: 214140
A7: 5 | B7: 藁城荣名库 | C7: 组件 | D7: 1003010053 | E7: TSM-535DE19 | F7: 山海智慧-乐丰（宽） | G7: 996 | H7: 1066 | I7: 1061736
A8: 6 | B8: 藁城荣名库 | C8: 组件 | D8: 1004000047 | E8: 晶科475 | F8: 山海智慧-天合 | G8: 904 | H8: 314 | I8: 283856
A9: 7 | B9: 藁城荣名库 | C9: 组件 | D9: 1001000045 | E9: TSM-450DE17M(II） | F9: 山海智慧-天合 | G9: 810 | H9: 42 | I9: 34020
A10: 8 | B10: 藁城荣名库 | C10: 组件 | D10: 1004000048 | E10: 晶科470 | F10: 山海智慧-天合 | G10: 904 | H10: 10008 | I10: 9047232
A11: 9 | B11: 藁城荣名库 | C11: 逆变器 | D11: 2002000040 | E11: 逆变器-40 | F11: 山海新能-古瑞瓦特 | G11: 7600 | H11: 0 | I11: 0
A12: 10 | B12: 藁城荣名库 | C12: 逆变器 | D12: 2001000015 | E12: 逆变器-15 | F12: 山海新能-锦浪 | G12: 3905 | H12: 0 | I12: 0
A13: 11 | B13: 藁城荣名库 | C13: 逆变器 | D13: 2001000036 | E13: 逆变器-36 | F13: 山海新能-锦浪 | G13: 8525 | H13: 0 | I13: 0
A14: 12 | B14: 藁城荣名库 | C14: 逆变器 | D14: 2002000050 | E14: 逆变器-50 | F14: 山海新能-古瑞瓦特 | G14: 9000 | H14: 0 | I14: 0
A15: 13 | B15: 藁城荣名库 | C15: 逆变器 | D15: 2004000136 | E15: 逆变器-36 | F15: 禾望 | G15: 7920 | H15: 0 | I15: 0
A16: 14 | B16: 藁城荣名库 | C16: 逆变器 | D16: 2004000133 | E16: 逆变器-33 | F16: 禾望 | G16: 7260 | H16: 0 | I16: 0
A17: 15 | B17: 藁城荣名库 | C17: 逆变器 | D17: 2004000130 | E17: 逆变器-30 | F17: 禾望 | G17: 7040 | H17: 0 | I17: 0
A21: 总计 | H21: =SUM(H3:H20) -> 12289 | I21: =SUM(I3:I20) -> 11275196

Sheet 曲阜荣名库
A1: 曲阜荣名库
A2: 序号 | B2: 仓库名称 | C2: 物料组 | D2: 物料编号 | E2: 物料名称 | F2: 物料品牌 | G2: 物料单价 | H2: 库存数量 | I2: 货值
A3: 1 | B3: 曲阜荣名库 | C3: 组件 | D3: 1004000060 | E3: 东方日升600 | F3: 山海新能-东方日升 | G3: 1108.8 | H3: 7192 | I3: =G3*H3 -> 7974489.6
A4: 2 | B4: 曲阜荣名库 | C4: 组件 | D4: 1004000047 | E4: 晶科475 | F4: 山海智慧-天合 | G4: 904 | H4: 6448 | I4: =G4*H4 -> 5828992
A5: 3 | B5: 曲阜荣名库 | C5: 组件 | D5: 1001000054 | E5: 天合600 | F5: 山海智慧-天合 | G5: 1267 | H5: 785 | I5: 994595
A6: 4 | B6: 曲阜荣名库 | C6: 逆变器 | D6: 2001000013 | E6: 逆变器-13 | F6: 山海新能-锦浪 | G6: 3520 | H6: 9 | I6: 31680
A7: 5 | B7: 曲阜荣名库 | C7: 逆变器 | D7: 2001000050 | E7: 逆变器-50 | F7: 山海新能-锦浪 | G7: 11990 | H7: 20 | I7: 239800
A8: 6 | B8: 曲阜荣名库 | C8: 逆变器 | D8: 2001000080 | E8: 逆变器-80 | F8: 山海新能-锦浪 | G8: 17300 | H8: 4 | I8: 69200
A9: 7 | B9: 曲阜荣名库 | C9: 逆变器 | D9: 20010000110 | E9: 逆变器-110 | F9: 山海新能-锦浪 | G9: 19800 | H9: 5 | I9: 99000
A10: 8 | B10: 曲阜荣名库 | C10: 逆变器 | D10: 2001000060 | E10: 逆变器-60 | F10: 山海新能-锦浪 | G10: 11300 | H10: 6 | I10: 67800
A11: 9 | B11: 曲阜荣名库 | C11: 逆变器 | D11: 2002000050 | E11: 逆变器-50 | F11: 山海新能-古瑞瓦特 | G11: 9000 | H11: 10 | I11: =G11*H11 -> 90000
A12: 10 | B12: 曲阜荣名库 | C12: 逆变器 | D12: 2002000040 | E12: 逆变器-40 | F12: 山海新能-古瑞瓦特 | G12: 7600 | H12: 14 | I12: 106400
A13: 11 | B13: 曲阜荣名库 | C13: 逆变器 | D13: 2003000050 | E13: 逆变器-50 | F13: 山海新能-固德威 | G13: 9900 | H13: 2 | I13: 19800
A14: 12 | B14: 曲阜荣名库 | C14: 逆变器 | D14: 2001000040 | E14: 逆变器-40 | F14: 山海新能-锦浪 | G14: 8690 | H14: 10 | I14: 86900
A15: 13 | B15: 曲阜荣名库 | C15: 逆变器 | D15: 2001000033 | E15: 逆变器-33 | F15: 山海新能-锦浪 | G15: 8195 | H15: 44 | I15: 360580
A16: 14 | B16: 曲阜荣名库 | C16: 逆变器 | D16: 2001000036 | E16: 逆变器-36 | F16: 山海新能-锦浪 | G16: 8525 | H16: 10 | I16: 85250
A17: 15 | B17: 曲阜荣名库 | C17: 逆变器 | D17: 2001000030 | E17: 逆变器-30 | F17: 山海新能-锦浪 | G17: 7700 | H17: 31 | I17: 238700
A18: 16 | B18: 曲阜荣名库 | C18: 逆变器 | D18: 2001000015 | E18: 逆变器-15 | F18: 山海新能-锦浪 | G18: 3905 | H18: 13 | I18: 50765
A19: 17 | B19: 曲阜荣名库 | C19: 逆变器 | D19: 2001000025 | E19: 逆变器-25 | F19: 山海新能-锦浪 | G19: 5170 | H19: 19 | I19: 98230
A20: 18 | B20: 曲阜荣名库 | C20: 逆变器 | D20: 2001000020 | E20: 逆变器-20 | F20: 山海新能-锦浪 | G20: 4510 | H20: 27 | I20: 121770
A24: 总计 | H24: =SUM(H3:H23) -> 14649 | I24: =SUM(I3:I23) -> 16563951.6
